[Event "Dutch Open 2022"]
[Site "Dieren"]
[Date "2022.08.01"]
[Round "6.11"]
[White "Vos, Tjark"]
[Black "Achuthan, Dylan"]
[Result "0-1"]
[ECO "B32"]
[WhiteElo "2224"]
[BlackElo "1989"]
[Annotator "TA"]
[PlyCount "86"]
[EventDate "2022.07.14"]
[EventType "swiss"]
[EventCountry "NED"]
[SourceTitle "playchess.com"]
[Source "ChessBase"]
[SourceQuality "1"]
[TimeControl "40/5400+30:1800+30"]

{[%evp 10,86,21,27,41,25,25,25,27,25,25,27,18,22,27,23,25,25,41,0,0,-18,-17,-20,-28,-13,-27,-28,-36,-31,-28,-41,-39,-43,-23,-136,-82,-63,-46,-37,-28,-35,-33,-205,-225,-193,-206,-829,-604,-826,-826,-821,-806,-947,-920,-920,-774,-697,-492,-489,-484,-477,-477,-431,-392,-541,-529,-646,-644,-657,-671,-637,-625,-759,-802,-993,-978,-947,-914]} 1. e4 {[%emt 0:00:02]} c5 {[%emt 0:00:06]} 2. Nf3 {[%emt 0:00:05]} Nc6 {[%emt 0:00:04]} 3. d4 {[%emt 0:00:18]} cxd4 {[%emt 0:00:07]} 4. Nxd4 {[%emt 0:00:03]} e5 {[%emt 0:00:06]} 5. Nb5 {[%emt 0:00:05]} d6 {[%emt 0:00:04]} 6. c4 {[%emt 0:00:25]} g6 {[%emt 0:00:05] 6...Be6 is the modern continuation. B32: Sicilian: Löwenthal and Kalashnikov Variations.} 7. N1c3 {[%emt 0:03:26]} a6 {[%emt 0:00:17]} 8. Na3 {[%emt 0:00:05]} Bg7 {[%emt 0:00:03] White has an edge.} 9. Be2 {[%emt 0:02:55]} Nf6 {[%emt 0:00:15][%cal Bg8f6,Bf6h5,Bh5f4][%mdl 32]} 10. O-O {[%emt 0:00:45]} Be6 {[%emt 0:00:23]} 11. Be3 {[%emt 0:01:33]} (11. Bg5 {is more complex.} Nd4 12. Nc2 O-O 13. Nxd4 exd4 14. Nd5) 11... O-O {[%emt 0:01:03][%cal Oc6d4]} 12. f3 {[%emt 0:05:41]} Nh5 {[%emt 0:05:13]} 13. Nc2 {[%emt 0:10:34]} Rc8 {[%emt 0:00:17] [#]} 14. b3 $146 {[%emt 0:03:37]} ({Predecessor:} 14. Nd5 Bxd5 15. Qxd5 Nd4 16. Bd3 b5 17. Nxd4 exd4 18. Bg5 Qb6 19. cxb5 Rc5 20. Qb3 Rxg5 21. bxa6 Qxb3 22. axb3 {0-1 (32) Pichot,A (2630)-Giri,A (2780) chess24.com INT 2021}) 14... Nf4 {[%emt 0:10:05]} 15. Nd5 {[%emt 0:07:05]} Bxd5 {[%emt 0:04:45]} 16. cxd5 {[%emt 0:00:18]} Nxe2+ {[%emt 0:01:10]} 17. Qxe2 {[%emt 0:00:05]} Nd4 {[%emt 0:00:56]} 18. Bxd4 {[%emt 0:00:30]} exd4 {[%emt 0:01:44]} 19. Rad1 {[%emt 0:03:54]} Qb6 {[%emt 0:05:21][%cal Oc8c2] White must now prevent ...Rxc2!} 20. Rd3 {[%emt 0:01:10]} Rc3 {[%emt 0:12:49]} 21. Rfd1 {[%emt 0:02:57][%cal Rc2d4]} Rfc8 $36 {[%emt 0:04:03][%mdl 2048] Black has the initiative.} (21... Qc5 $5 {[%cal Rc3c2]} 22. Nxd4 {[#]} Rc2 $1 $11) 22. Nxd4 {[%emt 0:13:19]} (22. Rxc3 $11 {keeps the balance.} dxc3+ 23. Kf1) 22... Bxd4+ {[%emt 0:23:10]} (22... Rc2 $142 $1 23. Qe3 Rxa2) 23. Rxd4 $17 {[%emt 0:02:14]} Rc1 {[%emt 0:00:14] ( -> ...Qxd4+)} 24. Kf2 {[%emt 0:03:16]} R8c2 {[%emt 0:04:07]} 25. R1d2 {[%emt 0:01:25]} Rxa2 {[%emt 0:10:01][%cal Oc1b1][%mdl 64] [#] ...Rb1! is the strong threat. Deflection} 26. Rxa2 $2 {[%emt 0:00:38] Now White is beyond hope.} (26. Qe3 $15 Rxd2+ 27. Qxd2) 26... Qxd4+ $15 {[%emt 0:00:05][%mdl 4096] Endgame KQR-KQR} 27. Kg3 {[%emt 0:00:09]} Qe5+ {[%emt 0:00:50]} 28. Kh3 $2 {[%emt 0:11:06]} (28. Kf2 Qxh2 29. Qd2) 28... Qh5+ $19 {[%emt 0:07:21]} ({And not} 28... Rh1 29. g4 $19) 29. Kg3 {[%emt 0:00:09]} g5 {[%emt 0:00:44][%csl Gg5][%cal Rh5h4]} 30. Kf2 {[%emt 0:05:31]} Qh4+ {[%emt 0:00:46]} 31. g3 {[%emt 0:00:26]} Qxh2+ {[%emt 0:00:14]} 32. Ke3 {[%emt 0:00:04]} Qxg3 {[%emt 0:01:20]} 33. Kd3 {[%emt 0:01:11] Prevents Rc3+.} Re1 {[%emt 0:02:46]} 34. Qf2 {[%emt 0:00:59]} Rd1+ {[%emt 0:00:48]} 35. Ke2 {[%emt 0:00:39]} Qxf2+ {[%emt 0:01:08]} 36. Kxf2 {[%emt 0:00:06] KR-KR} Rb1 {[%emt 0:01:00]} 37. Rc2 {[%emt 0:03:48]} Rxb3 {[%emt 0:00:58] Black is clearly winning.} 38. Rc8+ {[%emt 0:01:12]} Kg7 {[%emt 0:00:01]} 39. Rd8 {[%emt 0:00:09]} Rb6 {[%emt 0:00:22]} 40. Ke3 {[%emt 0:00:17]} Kf6 {[%emt 0:00:43] And now ...a5 would win.} 41. Rh8 {[%emt 0:30:38]} a5 {[%emt 0:30:51][%cal Ba6a5,Ba5a4][%mdl 32]} 42. Rxh7 {[%emt 0:00:24]} a4 {[%emt 0:02:10]} 43. e5+ {[%emt 0:01:47]} Kxe5 {[%emt 0:00:25] Weighted Error Value: White=0.56/Black=0.15 (very precise)} 0-1

[Event "Dutch Open 2022"]
[Site "Dieren"]
[Date "2022.08.01"]
[Round "6.12"]
[White "Vogel, Jaap"]
[Black "Op den Dries, Johan"]
[Result "0-1"]
[ECO "D02"]
[WhiteElo "2147"]
[BlackElo "2104"]
[Annotator "RC"]
[PlyCount "136"]
[EventDate "2022.07.14"]
[EventType "swiss"]
[EventCountry "NED"]
[SourceTitle "playchess.com"]
[Source "ChessBase"]
[SourceQuality "1"]
[TimeControl "40/5400+30:1800+30"]

1. d4 {[%emt 0:00:02]} d5 {[%emt 0:00:05]} 2. Bf4 {[%emt 0:00:10]} Nf6 {[%emt 0:00:06]} 3. e3 {[%emt 0:00:22]} c5 {[%emt 0:00:06]} 4. Nf3 {[%emt 0:03:06]} Nc6 {[%emt 0:00:50]} 5. c3 {[%emt 0:03:29]} Qb6 {[%emt 0:00:12]} 6. Qb3 {[%emt 0:01:21]} c4 {[%emt 0:00:23]} 7. Qc2 {[%emt 0:00:03]} Bf5 {[%emt 0:01:43]} 8. Qc1 {[%emt 0:00:05]} h6 {[%emt 0:01:20]} 9. h3 {[%emt 0:00:54]} g5 {[%emt 0:00:26]} 10. Bh2 {[%emt 0:00:23]} Bg7 {[%emt 0:00:30]} 11. Nbd2 {[%emt 0:00:16]} O-O {[%emt 0:02:32]} 12. Be2 {[%emt 0:00:41]} Ne4 {[%emt 0:02:16]} 13. O-O {[%emt 0:01:49]} Rac8 {[%emt 0:01:39]} 14. Nxe4 {[%emt 0:20:14]} Bxe4 {[%emt 0:00:09]} 15. Nd2 {[%emt 0:02:27]} Bg6 {[%emt 0:00:26]} 16. Bf3 {[%emt 0:09:38]} e6 {[%emt 0:03:21]} 17. e4 {[%emt 0:04:31]} Rfd8 {[%emt 0:06:47]} 18. e5 {[%emt 0:14:53]} Nxd4 {[%emt 0:06:21]} 19. cxd4 {[%emt 0:01:01]} Qxd4 {[%emt 0:00:04]} 20. Re1 {[%emt 0:11:26]} b5 {[%emt 0:00:33]} 21. Bd1 {[%emt 0:07:40]} b4 {[%emt 0:01:14]} 22. Nf3 {[%emt 0:00:42]} Qc5 {[%emt 0:02:15]} 23. Bc2 {[%emt 0:01:00]} Bxc2 {[%emt 0:00:45]} 24. Qxc2 {[%emt 0:00:04]} d4 {[%emt 0:00:20]} 25. Qe4 {[%emt 0:04:30]} c3 {[%emt 0:02:22]} 26. bxc3 {[%emt 0:01:30]} bxc3 {[%emt 0:00:04]} 27. h4 {[%emt 0:02:44]} gxh4 {[%emt 0:02:07]} 28. Bf4 {[%emt 0:03:26]} d3 {[%emt 0:01:01]} 29. Rad1 {[%emt 0:02:17]} Qc4 {[%emt 0:02:52]} 30. Qe3 {[%emt 0:03:18]} Kh7 {[%emt 0:04:10]} 31. g3 {[%emt 0:00:33]} hxg3 {[%emt 0:00:24]} 32. fxg3 {[%emt 0:00:11]} Bf8 {[%emt 0:01:00]} 33. Kg2 {[%emt 0:00:48]} Qxa2+ {[%emt 0:01:11]} 34. Kh3 {[%emt 0:00:17]} Qc4 {[%emt 0:00:52]} 35. Rh1 {[%emt 0:00:35]} Bc5 {[%emt 0:05:54]} 36. Qe1 {[%emt 0:00:39]} c2 {[%emt 0:07:06]} 37. Rc1 {[%emt 0:00:45]} Bb4 {[%emt 0:00:04]} 38. Qf2 {[%emt 0:00:35]} Rg8 {[%emt 0:03:22]} 39. Nd2 {[%emt 0:00:06]} Bxd2 {[%emt 0:01:51]} 40. Qxd2 {[%emt 0:01:07]} Rg6 {[%emt 0:00:28]} 41. Ra1 {[%emt 0:05:16]} Rcg8 {[%emt 0:02:54]} 42. Kh2 {[%emt 0:08:00]} a6 {[%emt 1:09:25]} 43. Ra3 {[%emt 0:07:47]} Rd8 {[%emt 0:00:00]} 44. Rc3 {[%emt 0:04:14]} Qe4 {[%emt 0:01:00]} 45. Re1 {[%emt 0:03:14]} Qf3 {[%emt 0:00:00]} 46. Re3 {[%emt 0:01:53]} Qd1 {[%emt 0:00:00]} 47. Re1 {[%emt 0:01:02]} Qxd2+ {[%emt 0:00:00]} 48. Bxd2 {[%emt 0:00:01]} Rg4 {[%emt 0:00:00]} 49. Rf1 {[%emt 0:01:30]} Rd7 {[%emt 0:00:00]} 50. Rf4 {[%emt 0:00:19]} Rxf4 {[%emt 0:00:00]} 51. gxf4 {[%emt 0:00:01]} Kg6 {[%emt 0:00:00]} 52. Kg3 {[%emt 0:00:03]} f6 {[%emt 0:00:00]} 53. exf6 {[%emt 0:00:27]} Kxf6 {[%emt 0:00:00]} 54. Kf3 {[%emt 0:00:40]} h5 {[%emt 0:00:00]} 55. Rc5 {[%emt 0:01:45]} Rd5 {[%emt 0:00:00]} 56. Rc8 {[%emt 0:01:04]} a5 {[%emt 0:00:00]} 57. Ke4 {[%emt 0:00:41]} h4 {[%emt 0:00:00]} 58. Rh8 {[%emt 0:00:44]} c1=Q {[%emt 0:00:00]} 59. Bxc1 {[%emt 0:01:00]} d2 {[%emt 0:00:00]} 60. Bxd2 {[%emt 0:00:01]} Rxd2 {[%emt 0:00:00]} 61. Rxh4 {[%emt 0:00:02]} a4 {[%emt 0:00:00]} 62. Rh6+ {[%emt 0:00:09]} Kg7 {[%emt 0:00:00]} 63. Rh3 {[%emt 0:01:40]} Rd5 {[%emt 0:00:00]} 64. Ra3 {[%emt 0:00:25]} Ra5 {[%emt 0:00:00]} 65. Kd4 {[%emt 0:00:20]} Kf6 {[%emt 0:00:00]} 66. Kc4 {[%emt 0:00:16]} Kf5 {[%emt 0:00:00]} 67. Kb4 {[%emt 0:00:05]} Ra8 {[%emt 0:00:00]} 68. Re3 {[%emt 0:00:35]} a3 {[%emt 0:00:00]} 0-1

[Event "Dutch Open 2022"]
[Site "Dieren"]
[Date "2022.08.01"]
[Round "6.13"]
[White "Binnendijk, Ferdinand"]
[Black "Shakhverdian, William"]
[Result "1/2-1/2"]
[ECO "D37"]
[WhiteElo "2147"]
[BlackElo "2040"]
[Annotator "RC"]
[PlyCount "104"]
[EventDate "2022.07.14"]
[EventType "swiss"]
[EventCountry "NED"]
[SourceTitle "playchess.com"]
[Source "ChessBase"]
[SourceQuality "1"]
[TimeControl "40/5400+30:1800+30"]

1. d4 {[%emt 0:00:01]} d5 {[%emt 0:00:06]} 2. c4 {[%emt 0:00:05]} e6 {[%emt 0:00:22]} 3. Nc3 {[%emt 0:00:06]} a6 {[%emt 0:00:06]} 4. cxd5 {[%emt 0:01:15]} exd5 {[%emt 0:00:14]} 5. Nf3 {[%emt 0:00:48]} Nf6 {[%emt 0:03:03]} 6. Bg5 {[%emt 0:02:36]} Be6 {[%emt 0:01:28]} 7. e3 {[%emt 0:03:06]} Nbd7 {[%emt 0:02:19]} 8. Bd3 {[%emt 0:00:18]} c6 {[%emt 0:00:45]} 9. O-O {[%emt 0:02:50]} Bd6 {[%emt 0:00:03]} 10. Re1 {[%emt 0:04:11]} Qb8 {[%emt 0:04:29]} 11. e4 {[%emt 0:02:39]} dxe4 {[%emt 0:08:16]} 12. Nxe4 {[%emt 0:00:09]} Nxe4 {[%emt 0:00:43]} 13. Bxe4 {[%emt 0:00:08]} O-O {[%emt 0:00:09]} 14. Qc2 {[%emt 0:05:05]} h6 {[%emt 0:02:07]} 15. Bh4 {[%emt 0:00:06]} Qc7 {[%emt 0:06:11]} 16. Rad1 {[%emt 0:11:28]} Rac8 {[%emt 0:06:20]} 17. d5 {[%emt 0:14:11]} cxd5 {[%emt 0:01:48]} 18. Qxc7 {[%emt 0:00:09]} Bxc7 {[%emt 0:03:52]} 19. Bxd5 {[%emt 0:00:36]} Bxd5 {[%emt 0:01:14]} 20. Rxd5 {[%emt 0:00:05]} Nb6 {[%emt 0:00:21]} 21. Rd4 {[%emt 0:04:39]} Rfe8 {[%emt 0:01:31]} 22. Kf1 {[%emt 0:02:47]} Kf8 {[%emt 0:03:24]} 23. g4 {[%emt 0:07:35]} a5 {[%emt 0:06:26]} 24. a4 {[%emt 0:01:59]} Rxe1+ {[%emt 0:02:32]} 25. Kxe1 {[%emt 0:00:47]} g5 {[%emt 0:01:47]} 26. Bg3 {[%emt 0:00:04]} Bxg3 {[%emt 0:00:13]} 27. hxg3 {[%emt 0:00:02]} Rc2 {[%emt 0:06:52]} 28. b3 {[%emt 0:02:29]} Rc3 {[%emt 0:01:24]} 29. Nd2 {[%emt 0:00:06]} Ke7 {[%emt 0:00:49]} 30. Ke2 {[%emt 0:01:21]} Ke6 {[%emt 0:03:42]} 31. Rd8 {[%emt 0:06:53]} Rc8 {[%emt 0:03:33]} 32. Rd3 {[%emt 0:04:35]} Nd5 {[%emt 0:04:20]} 33. Nc4 {[%emt 0:00:44]} Rc5 {[%emt 0:00:54]} 34. Kd2 {[%emt 0:08:32]} f6 {[%emt 0:07:24]} 35. Rd4 {[%emt 0:08:18]} f5 {[%emt 0:02:15]} 36. gxf5+ {[%emt 0:00:03]} Kxf5 {[%emt 0:00:11]} 37. g4+ {[%emt 0:00:08]} Kf6 {[%emt 0:02:21]} 38. Re4 {[%emt 0:01:38]} Nf4 {[%emt 0:00:56]} 39. Ke3 {[%emt 0:04:45]} b5 {[%emt 0:03:27]} 40. Nxa5 {[%emt 0:01:16]} bxa4 {[%emt 0:00:29]} 41. Rxa4 {[%emt 0:31:08]} Rc3+ {[%emt 0:33:01]} 42. Ke4 {[%emt 0:00:00]} Rc2 {[%emt 0:00:00]} 43. f3 {[%emt 0:00:00]} Re2+ {[%emt 0:00:00]} 44. Kd4 {[%emt 0:00:00]} Rd2+ {[%emt 0:00:00]} 45. Kc5 {[%emt 0:00:00]} Rd3 {[%emt 0:00:00]} 46. b4 {[%emt 0:00:00]} Ne6+ {[%emt 0:00:00]} 47. Kc6 {[%emt 0:00:00]} Rc3+ {[%emt 0:00:00]} 48. Kd5 {[%emt 0:00:00]} Rxf3 {[%emt 0:00:00]} 49. b5 {[%emt 0:00:00]} Nc7+ {[%emt 0:00:00]} 50. Kc6 {[%emt 0:00:00]} Nxb5 {[%emt 0:00:00]} 51. Kxb5 {[%emt 0:00:00]} Rf4 {[%emt 0:00:00]} 52. Rc4 {[%emt 0:00:00]} Rxc4 {[%emt 0:00:00]} 1/2-1/2

[Event "Dutch Open 2022"]
[Site "Dieren"]
[Date "2022.08.01"]
[Round "6.14"]
[White "Saketh, Pedagandham"]
[Black "Zwirs, Jasper"]
[Result "0-1"]
[ECO "B51"]
[WhiteElo "1928"]
[BlackElo "2105"]
[Annotator "NA RC"]
[PlyCount "50"]
[EventDate "2022.07.14"]
[EventType "swiss"]
[EventCountry "NED"]
[SourceTitle "playchess.com"]
[Source "ChessBase"]
[SourceQuality "1"]
[TimeControl "40/5400+30:1800+30"]

1. e4 {[%emt 0:13:48]} c5 {[%emt 0:00:06]} 2. Nf3 {[%emt 0:00:05]} d6 {[%emt 0:00:09]} 3. Bb5+ {[%emt 0:00:06]} Nd7 {[%emt 0:00:31]} 4. c4 {[%emt 0:00:08]} Ngf6 {[%emt 0:02:17]} 5. Nc3 {[%emt 0:00:24]} g6 {[%emt 0:03:29]} 6. d3 {[%emt 0:01:02]} Bg7 {[%emt 0:01:03]} 7. h3 {[%emt 0:00:12]} O-O {[%emt 0:00:24]} 8. Ba4 {[%emt 0:00:07]} a6 {[%emt 0:06:23]} 9. Be3 {[%emt 0:00:36]} b6 {[%emt 0:03:44]} 10. Qd2 {[%emt 0:01:10]} Qc7 {[%emt 0:12:09]} 11. Bh6 {[%emt 0:03:51]} e6 {[%emt 0:03:10]} 12. Nh2 {[%emt 0:05:16]} Ne8 {[%emt 0:31:12]} 13. Bxg7 {[%emt 0:03:06]} Nxg7 {[%emt 0:00:24]} 14. Qh6 {[%emt 0:01:01]} Bb7 {[%emt 0:08:40]} 15. Nf3 {[%emt 0:05:56]} f6 {[%emt 0:00:38]} 16. Bxd7 {[%emt 0:04:09]} Qxd7 {[%emt 0:00:03]} 17. g4 {[%emt 0:01:29]} d5 {[%emt 0:06:57]} 18. O-O-O {[%emt 0:00:20]} b5 {[%emt 0:00:47]} 19. b3 {[%emt 0:24:47]} d4 {[%emt 0:02:16]} 20. Ne2 {[%emt 0:03:56]} bxc4 {[%emt 0:00:14]} 21. bxc4 {[%emt 0:00:25]} Qa4 {[%emt 0:01:47]} 22. Kb1 {[%emt 0:06:30]} Bxe4 {[%emt 0:01:59]} 23. dxe4 {[%emt 0:00:18]} Rab8+ {[%emt 0:00:01]} 24. Ka1 {[%emt 0:00:32]} Qa3 {[%emt 0:00:24]} 25. Nd2 {[%emt 0:03:28]} Qb2# {[%emt 0:00:06]} 0-1

[Event "Dutch Open 2022"]
[Site "Dieren"]
[Date "2022.08.01"]
[Round "6.15"]
[White "Baselmans, Luuk"]
[Black "De Boer, Bas"]
[Result "1-0"]
[ECO "B51"]
[WhiteElo "2256"]
[BlackElo "2136"]
[Annotator "TA"]
[PlyCount "125"]
[EventDate "2022.07.14"]
[EventType "swiss"]
[EventCountry "NED"]
[SourceTitle "playchess.com"]
[Source "ChessBase"]
[SourceQuality "1"]
[TimeControl "40/5400+30:1800+30"]

{[%evp 13,125,8,7,5,21,7,27,16,13,12,14,-1,18,10,13,16,14,0,10,11,20,0,9,-112,-21,-83,6,6,21,0,34,41,91,64,81,72,109,-44,-47,-161,-150,-190,-186,-171,-150,-147,-123,-246,-243,-255,-248,-256,-253,-235,-231,-447,-431,-436,-443,-513,-248,-242,0,0,0,0,0,1,25,65,81,74,152,86,94,98,483,482,475,383,470,464,478,466,453,378,398,376,488,490,493,492,558,559,546,485,729,683,678,440,644,664,670,660,958,893,808,550,530,424,424,409,6299,1338]} 1. e4 {[%emt 0:00:03]} c5 {[%emt 0:00:13]} 2. Nf3 {[%emt 0:00:06]} d6 {[%emt 0:00:08]} 3. Bb5+ {[%emt 0:00:48]} Nd7 {[%emt 0:01:33]} 4. d4 {[%emt 0:00:38]} cxd4 {[%emt 0:01:33]} 5. Qxd4 {[%emt 0:00:20]} a6 {[%emt 0:00:54]} 6. Bxd7+ {[%emt 0:00:18]} Bxd7 {[%emt 0:00:02]} 7. Nc3 {[%emt 0:00:18]} e5 {[%emt 0:01:28]} 8. Qd3 {[%emt 0:00:23] B51: Sicilian: Moscow Variation (3 Bb5+) without 3...Bd7.} Rc8 {[%emt 0:02:45]} 9. O-O {[%emt 0:01:26]} h6 {[%emt 0:03:07]} 10. Rd1 {[%emt 0:02:29] White has an edge.} Nf6 {[%emt 0:05:56]} 11. Nd2 {[%emt 0:01:04]} Bg4 {[%emt 0:07:02]} 12. Re1 {[%emt 0:00:25]} Qc7 {[%emt 0:05:34]} 13. Nf1 {[%emt 0:01:21]} Be7 {[%emt 0:03:54]} 14. Ne3 {[%emt 0:00:56]} Be6 {[%emt 0:00:15]} 15. a4 {[%emt 0:02:27]} O-O {[%emt 0:02:48]} 16. a5 {[%emt 0:06:49]} Rfd8 {[%emt 0:05:47][%cal Od6d5] [#]} 17. Bd2 $146 {[%emt 0:03:00]} ({Predecessor:} 17. h3 Qc6 18. Ncd5 Bxd5 19. exd5 Qd7 20. c4 Nh5 21. Nf5 Bf8 22. b3 e4 23. Nxh6+ gxh6 24. Rxe4 {0-1 (29) Alexiadis,H (2291)-Bok,B (2616) Chess.com INT 2022}) 17... Bf8 {[%emt 0:07:32][%cal Od6d5]} 18. Ra4 {[%emt 0:06:44]} (18. Ncd5 $11 Nxd5 19. exd5) 18... Qd7 {[%emt 0:05:04]} (18... d5 $1 $17 {[%cal Rd5d4] Hoping for ...d4.} 19. exd5 (19. Nexd5 Nxd5 20. exd5 Bxd5 $17) 19... Nxd5 $1) 19. Nc4 {[%emt 0:09:08]} (19. Raa1 $11 {remains equal.}) 19... Qe8 {[%emt 0:07:24]} (19... d5 $1 $17 {[%cal Rd5e4]} 20. Nxe5 Qe8) 20. Nb6 $11 {[%emt 0:02:35]} Nd7 {[%emt 0:04:43] Threatens to win with ...Nxb6.} 21. Rb4 {[%emt 0:11:46]} (21. Nxc8 Nc5 22. Qg3 (22. Ne7+ $2 Bxe7 23. Qe2 Nxa4 $19) 22... Nxa4 $15) (21. Be3 $5 {[%cal Rb6c8]}) 21... Rc5 {[%emt 0:05:09]} (21... d5 $5 {[%cal Rd5e4]} 22. Nxc8 Bxb4 23. Nxd5 Nc5 $11) 22. Nbd5 {[%emt 0:04:21] Pair of Knights!} Rdc8 {[%emt 0:02:22]} ({Black should try} 22... Rb8 $14) 23. Qg3 {[%emt 0:01:11]} (23. Rxb7 Rxc3 $1 24. Bxc3 Nc5 25. Nf6+ gxf6 26. Qg3+ Kh7 $19) 23... Kh8 {[%emt 0:09:32]} 24. Rxb7 {[%emt 0:01:18]} f5 {[%emt 0:01:18]} 25. f4 $2 {[%emt 0:07:42] White is much more active.} (25. b4 $16 Bxd5 26. exd5) 25... fxe4 $15 {[%emt 0:03:31]} 26. Ne3 {[%emt 0:01:07]} (26. Nb6 $15) 26... d5 $1 $19 {[%emt 0:00:42]} 27. f5 {[%emt 0:00:10]} Bf7 {[%emt 0:00:58]} 28. Ng4 {[%emt 0:00:20][%cal Of5f6]} R5c7 {[%emt 0:01:40]} 29. Rxc7 {[%emt 0:01:43]} Rxc7 {[%emt 0:00:01]} 30. Rf1 {[%emt 0:03:51]} (30. f6 $17 Rc6 31. fxg7+ Bxg7 32. Qh4) 30... Rc6 {[%emt 0:00:23]} 31. f6 {[%emt 0:00:27]} Nxf6 {[%emt 0:01:04]} 32. Nxe5 {[%emt 0:00:20]} Bd6 {[%emt 0:03:17]} 33. Nxf7+ {[%emt 0:01:59]} Qxf7 {[%emt 0:00:02]} 34. Qh4 {[%emt 0:01:13]} (34. Qh3) 34... Bc5+ {[%emt 0:01:33]} 35. Kh1 {[%emt 0:00:24]} e3 {[%emt 0:00:35]} 36. Be1 {[%emt 0:01:47]} Qg6 {[%emt 0:00:28]} (36... d4 $142 37. Ne4 Qc4) 37. Nxd5 {[%emt 0:04:54]} Nxd5 {[%emt 0:00:54]} ({Black should play} 37... e2 $19 {[%cal Re2f1]} 38. Rf4 Qe8) 38. Qd8+ $11 {[%emt 0:00:07]} Kh7 {[%emt 0:01:04]} 39. Qxd5 {[%emt 0:00:06]} Be7 {[%emt 0:06:52]} (39... e2 $5 40. Rf4 Be7 $11) 40. Bc3 {[%emt 0:01:37]} e2 {[%emt 0:00:47][%cal Re2f1]} (40... Rd6 $5 {[%cal Rd6d5]} 41. Qf3 Re6 $11) 41. Re1 {[%emt 0:31:23]} Re6 {[%emt 0:07:00]} 42. g3 {[%emt 0:00:00]} Qg4 {[%emt 0:04:47] [#]} (42... Kh8 $142) 43. Qd3+ {[%emt 0:00:00]} ({Not} 43. Be5 $2 Qf5 44. Qg2 Qxe5 $19) (43. Kg2 $142 $1) 43... Kh8 $16 {[%emt 0:03:24] [#]} 44. Kg2 $1 {[%emt 0:00:00]} Re4 $2 {[%emt 0:01:31][%mdl 8192]} (44... Bb4 $16 {is a better chance.}) 45. Qxa6 $18 {[%emt 0:00:00]} Bc5 {[%emt 0:08:54]} 46. Qxh6+ {[%emt 0:00:00]} ({Weaker is} 46. b4 Bxb4 47. Bxb4 Rxb4 48. Qxe2 Qxe2+ 49. Rxe2 Ra4 50. Re8+ Kh7 $18) 46... Kg8 {[%emt 0:00:02]} 47. Qd2 {[%emt 0:00:00] Qd5+ is the strong threat.} Qe6 {[%emt 0:01:11] Against Qd5} 48. Qg5 {[%emt 0:00:00][%csl Gc3,LRc5,LRg7][%cal Rg5g7]} Bf8 {[%emt 0:00:56]} 49. h3 {[%emt 0:00:00]} Qc6 {[%emt 0:04:20] ( -> ...Rf4+)} 50. Kh2 {[%emt 0:00:00]} Re6 {[%emt 0:01:09]} 51. Qg4 {[%emt 0:00:00]} Re4 {[%emt 0:00:32]} 52. Qf3 {[%emt 0:00:00]} Qe8 {[%emt 0:01:29]} 53. a6 {[%emt 0:00:00]} Bc5 {[%emt 0:00:28]} 54. Bd2 {[%emt 0:00:57]} Kh8 {[%emt 0:00:57]} (54... Ba7 $142 55. b4 Qe5) 55. b4 {[%emt 0:00:58]} Ba7 {[%emt 0:00:16]} 56. c3 {[%emt 0:01:06][%cal Oc3c4] aiming for c4!} Re6 {[%emt 0:00:16]} (56... Qe6 $142 57. b5 Qc4) 57. Bf4 {[%emt 0:00:46]} Qe7 {[%emt 0:01:14]} 58. Kg2 {[%emt 0:01:55]} g6 {[%emt 0:00:25] [#]} 59. Bg5 $1 {[%emt 0:00:46][%mdl 512]} Qe8 {[%emt 0:00:24]} 60. Bf6+ {[%emt 0:00:19]} Kg8 {[%emt 0:00:04]} 61. Bd4 {[%emt 0:00:13]} Bxd4 {[%emt 0:01:10]} 62. cxd4 {[%emt 0:00:06] Black must now prevent a7.} Qe7 {[%emt 0:00:26]} (62... Rxa6 $142 63. Rxe2 Qf7) 63. b5 {[%emt 0:00:59] What a bad dream for Black.  Weighted Error Value: White=0.36/Black=0.47} 1-0